fUSD/lending_fUSD_20260308
["ID","MTS","AMOUNT","RATE_DAILY","PERIOD"]
[407991183,1772982641690,-1000.0,0.00019994,2]
[407991184,1772982641700,-151.0,0.00019996,2]
[407991185,1772982641709,-151.0,0.00019997,2]
[407991186,1772982641718,-310.89756555,0.00019999,2]
[407991187,1772982641727,-300.0,0.00019999,2]
[407991188,1772982641736,-666.0,0.00019999,2]
[407991189,1772982641745,-675.51296807,0.00019999,2]
[407991190,1772982641754,-300.0,0.00019999,2]
[407991191,1772982641762,-300.0,0.00019999,2]
[407991192,1772982641772,-164.431,0.00019999,2]
[407991193,1772982641780,-207666.9343955,0.00019999,2]
[407991194,1772982641789,-5980.5383356,0.00019999,2]
[407991195,1772982641799,-69222.3114651,0.00019999,2]
[407991196,1772982641808,-500.0,0.00019999,2]
[407991197,1772982641817,-500.0,0.00019999,2]
[407991198,1772982641826,-500.0,0.00019999,2]
[407991199,1772982641835,-500.0,0.00019999,2]
[407991200,1772982641844,-500.0,0.00019999,2]
[407991201,1772982641853,-500.0,0.00019999,2]
[407991202,1772982641862,-500.0,0.00019999,2]
[407991203,1772982641871,-2077.6452503,0.00019999,2]
[407991204,1772982641880,-500.0,0.00019999,2]
[407991205,1772982641890,-500.0,0.00019999,2]
[407991206,1772982641899,-500.0,0.00019999,2]
[407991207,1772982641908,-500.0,0.00019999,2]
[407991208,1772982641917,-516.64002131,0.00019999,2]
[407991209,1772982641927,-500.0,0.00019999,2]
[407991210,1772982641936,-500.0,0.00019999,2]
[407991211,1772982641946,-500.0,0.00019999,2]
[407991212,1772982641955,-175.79749323,0.00019999,2]
[407991213,1772982641965,-500.0,0.00019999,2]
[407991214,1772982641974,-500.0,0.00019999,2]
[407991215,1772982641983,-500.0,0.00019999,2]
[407991216,1772982641992,-500.0,0.00019999,2]
[407991217,1772982642002,-500.0,0.00019999,2]
[407991218,1772982642011,-500.0,0.00019999,2]
[407991219,1772982642021,-500.0,0.00019999,2]
[407991220,1772982642031,-500.0,0.00019999,2]
[407991221,1772982642040,-500.0,0.00019999,2]
[407991222,1772982642050,-500.0,0.00019999,2]
[407991223,1772982642059,-500.0,0.00019999,2]
[407991224,1772982642069,-500.0,0.00019999,2]
[407991225,1772982642078,-500.0,0.00019999,2]
[407991226,1772982642088,-500.0,0.00019999,2]
[407991227,1772982642097,-500.0,0.00019999,2]
[407991228,1772982642108,-500.0,0.00019999,2]
[407991229,1772982642117,-549.68387848,0.00019999,2]
[407991230,1772982642127,-69361.9145529,0.00019999,2]
[407991231,1772982642136,-500.0,0.00019999,2]
[407991232,1772982642146,-500.0,0.00019999,2]
[407991233,1772982642155,-500.0,0.00019999,2]
[407991234,1772982642164,-500.0,0.00019999,2]
[407991235,1772982642173,-504.84755744,0.00019999,2]
[407991236,1772982642183,-500.0,0.00019999,2]
[407991237,1772982642192,-500.0,0.00019999,2]
[407991239,1772982642201,-386.52843539,0.00019999,2]
[407991241,1772982642211,-3000.0,0.00019999,2]
[407991243,1772982642221,-3000.0,0.00019999,2]
[407991245,1772982642231,-3000.0,0.00019999,2]
[407991247,1772982642240,-3000.0,0.00019999,2]
[407991248,1772982642250,-3000.0,0.00019999,2]
[407991249,1772982642263,-3000.0,0.00019999,2]
[407991250,1772982642273,-3000.0,0.00019999,2]
[407991251,1772982642283,-3000.0,0.00019999,2]
[407991252,1772982642292,-3000.0,0.00019999,2]
[407991254,1772982642303,-3000.0,0.00019999,2]
[407991255,1772982642312,-3000.0,0.00019999,2]
[407991257,1772982642322,-3000.0,0.00019999,2]
[407991259,1772982642334,-3000.0,0.00019999,2]
[407991261,1772982642343,-3000.0,0.00019999,2]
[407991263,1772982642352,-3000.0,0.00019999,2]
[407991265,1772982642362,-3000.0,0.00019999,2]
[407991266,1772982642371,-3000.0,0.00019999,2]
[407991267,1772982642381,-3000.0,0.00019999,2]
[407991268,1772982642391,-3000.0,0.00019999,2]
[407991269,1772982642401,-3000.0,0.00019999,2]
[407991270,1772982642410,-3000.0,0.00019999,2]
[407991271,1772982642420,-2012.0,0.00019999,2]
[407991272,1772982642430,-150.0,0.00019999,2]
[407991273,1772982642439,-215.40583698,0.00019999,2]
[407991274,1772982642450,-444.81947895,0.00019999,2]
[407991276,1772982642460,-500.0,0.00019999,2]
[407991278,1772982642470,-500.0,0.00019999,2]
[407991280,1772982642479,-500.0,0.00019999,2]
[407991281,1772982642489,-500.0,0.00019999,2]
[407991282,1772982642498,-500.0,0.00019999,2]
[407991283,1772982642507,-210.01395276,0.00019999,2]
[407991284,1772982642516,-520.99198351,0.00019999,2]
[407991285,1772982642526,-162.46726597,0.00019999,2]
[407991286,1772982642535,-6410.0,0.0002,2]
[407991287,1772982642544,-5124.0,0.0002,2]
[407991288,1772982642553,-2448320.2394709,0.0002,2]
[407991303,1772982643682,-583.07425145,0.0002,2]
[407991304,1772982643714,-476.59485294,0.0002,2]
[407991305,1772982643805,-258.63162805,0.0002,2]
[407991307,1772982645355,-56.06026319,0.00015832,2]
[407991308,1772982645368,-701.48829943,0.00015832,2]
[407991309,1772982645379,-757.45143738,0.00015832,2]
[407991310,1772982645388,-169.10224528,0.00019899,2]
[407991311,1772982645397,-6459.81702413,0.0002,2]
[407991312,1772982645631,-1515.0,0.00015832,2]
[407991313,1772982645640,-486.0,0.0002,2]
[407991322,1772982878448,-185.0,0.00015831,2]
[407991323,1772982878470,-300.0,0.00015831,2]
[407991324,1772982878492,-300.0,0.00015831,2]
[407991325,1772982878515,-1515.0,0.00015832,2]
[407991326,1772982878536,-1240.9032,0.00015832,2]
[407991327,1772982880475,-274.0968,0.00015832,2]
[407991328,1772982880495,-1538.91941432,0.00015832,2]
[407991329,1772982880517,-350.9032,0.00016099,2]
[407991330,1772982900129,10000.0,0.0002,120]
[407991331,1772982915418,10000.0,0.0002,120]
[407991332,1772983035838,278.19985599,0.00015,30]
[407991333,1772983036663,988.28459692,0.00015,30]
[407991334,1772983042241,110.49933277,0.00015,30]
[407991335,1772983042262,638.65120994,0.00015,30]
[407991336,1772983042449,500.0,0.00015,30]
[407991337,1772983042770,500.0,0.00015,30]
[407991338,1772983042847,500.0,0.000111,2]
[407991339,1772983046963,500.0,0.00015,30]
[407991340,1772983050332,500.0,0.00015,30]
[407991341,1772983050444,402.25199006,0.00015,30]
[407991371,1772983731750,284.9,8.852e-05,2]
[407991372,1772983731939,284.9,9.318e-05,2]
[407991373,1772983732159,284.9,9.784e-05,2]
[407991374,1772983732351,284.9,0.00010249,2]
[407991375,1772983732555,284.9,0.00010715,2]
[407991376,1772983732773,284.9,0.00011181,2]
[407991378,1772983831477,-284.9,0.00011647,2]
[407991379,1772983831487,-284.9,0.00012113,2]
[407991380,1772983831496,-208.69,0.0001221,2]
[407991383,1772983831506,-208.7,0.0001221,2]
[407991384,1772983831515,-284.9,0.00012579,2]
[407991385,1772983831527,-250.0,0.00012812,2]
[407991386,1772983831537,-250.0,0.00012812,2]
[407991387,1772983831547,-284.9,0.00013045,2]
[407991388,1772983831557,-284.9,0.00013511,2]
[407991389,1772983831566,-284.9,0.00013977,2]
[407991390,1772983831578,-284.9,0.00014442,2]
[407991391,1772983831587,-284.9,0.00014908,2]
[407991392,1772983831597,-65.63008611,0.00015,30]
[407991393,1772983831608,-600.0,0.00015009,2]
[407991394,1772983831621,-1070.20847194,0.00015016,2]
[407991395,1772983831633,-129.79152806,0.00015016,2]
[407991396,1772983831644,-976.55665814,0.00015017,2]
[407991397,1772983831657,-4023.44334186,0.00015017,2]
[407991398,1772983831667,-300.0,0.0001504,2]
[407991399,1772983831677,-300.0,0.00015041,2]
[407991401,1772983831689,-300.0,0.00015041,2]
[407991403,1772983831698,-600.0,0.00015042,2]
[407991404,1772983831708,-600.0,0.00015042,2]
[407991407,1772983831718,-1198.0,0.00015088,2]
[407991409,1772983831727,-1830.3489039,0.00015089,2]
[407991411,1772983831737,-284.9,0.00015374,2]
[407991413,1772983831746,-222.47487,0.00015417,7]
[407991414,1772983831756,-284.9,0.0001584,2]
[407991415,1772983831765,-216.0,0.00016099,3]
[407991416,1772983831774,-157.0,0.00016099,3]
[407991417,1772983831784,-153.0,0.00016099,3]
[407991418,1772983831793,-450.0,0.00016225,2]
[407991420,1772983831803,-1064.13867535,0.00016228,2]
[407991422,1772983831812,-284.9,0.00016306,2]
[407991424,1772983831821,-251.41690846,0.00016329,2]
[407991426,1772983831831,-1003.45062288,0.00016437,2]
[407991428,1772983831840,-200.0,0.00016438,2]
[407991430,1772983831850,-420.0,0.0001646,2]
[407991432,1772983831859,-300.0,0.00016461,2]
[407991434,1772983831868,-193.0,0.000165,2]
[407991437,1772983831878,-5000.0,0.000165,2]
[407991440,1772983831887,-2500.0,0.000165,2]
[407991443,1772983831896,-2500.0,0.000165,2]
[407991445,1772983831906,-2500.0,0.000165,2]
[407991447,1772983831915,-2500.0,0.000165,2]
[407991449,1772983831925,-600.0,0.000165,2]
[407991451,1772983831934,-195.0,0.000165,2]
[407991453,1772983831943,-195.0,0.000165,2]
[407991455,1772983831953,-195.0,0.000165,2]
[407991457,1772983831963,-195.0,0.000165,2]
[407991459,1772983831972,-195.0,0.000165,2]
[407991461,1772983831982,-300.0,0.000165,2]
[407991462,1772983831993,-1200.0,0.00016518,2]
[407991463,1772983832003,-284.9,0.00016772,2]
[407991464,1772983832014,-511.0,0.00017,2]
[407991465,1772983832025,-1762.63,0.00017155,2]
[407991466,1772983832034,-284.9,0.00017238,2]
[407991467,1772983832044,-232.22,0.000175,2]
[407991468,1772983832053,-284.9,0.00017704,2]
[407991469,1772983832064,-206.01679556,0.00017739,2]
[407991470,1772983832075,-2978.00790206,0.00017753,2]
[407991471,1772983832085,-216.0,0.00017989,3]
[407991472,1772983832095,-3240.0,0.00017994,2]
[407991473,1772983832105,-200.0,0.00017997,2]
[407991474,1772983832115,-229.0,0.00018014,2]
[407991475,1772983832124,-157.0,0.00018093,3]
[407991476,1772983832135,-1226.71,0.00018095,2]
[407991477,1772983832144,-157.33,0.00018416,2]
[407991478,1772983832155,-9999.99,0.00018533,2]
[407991479,1772983832164,-150.99,0.00018533,2]
[407991480,1772983832174,-166.66,0.00018631,2]
[407991481,1772983832184,-526.0,0.00018653,2]
[407991482,1772983832194,-415.0,0.00018674,2]
[407991483,1772983832205,-255.8952127,0.00018697,2]
[407991484,1772983832215,-445.7193319,0.00018706,2]
[407991485,1772983832224,-415.0,0.00018784,2]
[407991486,1772983832235,-526.0,0.00018798,2]
[407991487,1772983832245,-172.82949155,0.00018822,2]
[407991488,1772983832255,-526.0,0.00018847,2]
[407991489,1772983832266,-415.0,0.00018966,2]
[407991490,1772983832276,-415.0,0.00018976,2]
[407991491,1772983832285,-250.0,0.00018999,2]
[407991492,1772983832295,-1428.38747117,0.00018999,2]
[407991493,1772983832304,-500.0,0.00018999,2]
[407991494,1772983832314,-250.0,0.00018999,2]
[407991495,1772983832323,-250.0,0.00018999,2]
[407991496,1772983832332,-250.0,0.00018999,2]
[407991497,1772983832342,-250.0,0.00018999,2]
[407991498,1772983832351,-250.0,0.00018999,2]
[407991499,1772983832360,-250.0,0.00018999,2]
[407991500,1772983832370,-250.0,0.00018999,2]
[407991501,1772983832379,-693.3919763,0.00018999,2]
[407991502,1772983832390,-200.0,0.00018999,2]
[407991503,1772983832400,-719.04747942,0.00019054,2]
[407991504,1772983832410,-511.0,0.000191,3]
[407991505,1772983832420,-745.65223616,0.00019109,2]
[407991506,1772983832430,-773.2413689,0.00019164,2]
[407991507,1772983832440,-463.0,0.00019196,2]
[407991508,1772983832449,-801.85129955,0.00019219,2]
[407991509,1772983832458,-166.66,0.00019246,2]
[407991510,1772983832468,-831.51979763,0.00019274,2]
[407991511,1772983832479,-350.0,0.00019275,2]
[407991512,1772983832488,-415.0,0.00019311,2]
[407991513,1772983832501,-526.0,0.00019312,2]
[407991514,1772983832512,-415.0,0.00019322,2]
[407991515,1772983832522,-862.28603014,0.00019329,2]
[407991516,1772983832531,-894.19061326,0.00019384,2]
[407991517,1772983832542,-463.0,0.00019385,2]
[407991518,1772983832551,-350.0,0.00019434,2]
[407991519,1772983832561,-927.27566595,0.00019439,2]
[407991520,1772983832571,-374.1097302,0.00019471,2]
[407991521,1772983832581,-961.58486559,0.00019494,2]
[407991522,1772983832591,-1000.0,0.00019514,2]
[407991523,1772983832601,-19571.83058601,0.00019514,2]
[407991524,1772983832624,-3043.77347707,0.00019514,2]
[407991525,1772983832652,-569.13169042,0.00019514,2]
[407991526,1772983832686,-594.0,0.00019514,2]
[407991527,1772983832697,-3739.89258961,0.00019514,2]
[407991528,1772983832709,-560.87669946,0.00019514,2]
[407991529,1772983832723,-515.94292169,0.00019514,2]
[407991532,1772983837595,-4328.20483574,0.00019514,2]
[407991533,1772983837606,-1481.23780761,0.00019547,2]
[407991534,1772983837621,-997.16350561,0.00019549,2]
[407991535,1772983837635,-279.0287807,0.000196,2]
[407991536,1772983837645,-2977.443,0.000196,2]
[407991537,1772983837655,-675.01681,0.000198,2]
[407991538,1772983837666,-675.01682,0.000198,2]
[407991539,1772983837676,-200.0,0.00019839,2]
[407991540,1772983837685,-500.0,0.0001984,2]
[407991541,1772983837694,-200.0,0.0001984,2]
[407991542,1772983837704,-166.66,0.00019861,2]
[407991543,1772983837714,-216.0,0.00019878,3]
[407991544,1772983837723,-192.11036378,0.00019886,2]
[407991545,1772983837739,-590.02802209,0.00019886,2]
[407991546,1772983837750,-483.71295659,0.00019886,2]
[407991547,1772983837759,-1933.15725196,0.00019886,2]
[407991548,1772983837768,-306.74333291,0.00019886,2]
[407991549,1772983837778,-2500.0,0.00019886,2]
[407991550,1772983837791,-544.07044123,0.00019888,2]
[407991551,1772983837911,-721.78090123,0.00019888,2]
[407991552,1772983837931,-1933.15725195,0.00019888,2]
[407991554,1772983837943,-306.74333284,0.00019888,2]
[407991556,1772983837954,-1265.85134246,0.00019889,2]
[407991558,1772983837966,-1933.15725195,0.00019889,2]
[407991560,1772983837978,-306.74333284,0.0001989,2]
[407991562,1772983837989,-1265.85134246,0.00019891,2]
[407991564,1772983838000,-1933.15725195,0.00019891,2]
[407991566,1772983838010,-306.74333284,0.00019892,2]
[407991568,1772983838020,-1265.85134246,0.00019892,2]
[407991570,1772983838030,-1933.15725195,0.00019892,2]
[407991572,1772983838041,-1265.85134246,0.00019894,2]
[407991574,1772983838051,-1933.15725195,0.00019894,2]
[407991576,1772983838060,-306.74333284,0.00019894,2]
[407991577,1772983838069,-1265.85134246,0.00019895,2]
[407991578,1772983838078,-1933.15725195,0.00019895,2]
[407991579,1772983838087,-306.74333284,0.00019896,2]
[407991580,1772983838096,-350.0,0.00019896,2]
[407991581,1772983838105,-1265.85134246,0.00019897,2]
[407991582,1772983838114,-1933.15725195,0.00019897,2]
[407991583,1772983838124,-306.74333284,0.00019898,2]
[407991584,1772983838134,-1265.85134246,0.00019898,2]
[407991585,1772983838144,-1933.15725195,0.00019898,2]
[407991586,1772983838155,-163.0,0.000199,21]
[407991587,1772983838171,-4745.7529,0.000199,2]
[407991588,1772983838190,-1056.5346,0.000199,2]
[407991589,1772983838208,-5000.0,0.000199,2]
[407991590,1772983838219,-1265.85134246,0.000199,2]
[407991591,1772983838228,-1933.15725195,0.000199,2]
[407991592,1772983838238,-300.21014576,0.000199,2]
[407991593,1772983838248,-2222.4468515,0.000199,2]
[407991594,1772983838257,-306.74333284,0.000199,2]
[407991595,1772983838509,-1403.21204333,0.000199,2]
[407991596,1772983838520,-2961.96,0.000199,2]
[407991597,1772983838531,-2961.96,0.000199,2]
[407991598,1772983838544,-923.18613559,0.000199,2]
[407991600,1772983840119,-4420.04386441,0.000199,2]
[407991601,1772983840128,-463.0,0.00019924,2]
[407991602,1772983840137,-362.92309154,0.00019973,2]
[407991603,1772983840147,-150.0,0.00019973,2]
[407991604,1772983840156,-150.0,0.00019979,2]
[407991605,1772983840165,-8140.83304407,0.00019986,2]
[407991606,1772983840337,-34697.58319333,0.00019986,2]
[407991607,1772983840347,-22639.9081878,0.00019986,2]
[407991608,1772983840356,-207666.9343954,0.00019986,2]
[407991609,1772983840365,-2077.6452504,0.00019986,2]
[407991610,1772983840374,-7674.31622921,0.00019986,2]
[407991611,1772983840386,-30693.68137495,0.00019986,2]
[407991632,1772983840706,-48194.79249924,0.00019986,2]
[407991634,1772983840717,-1632.1919475,0.00019986,2]
[407991636,1772983840726,-52021.4359147,0.00019986,2]
[407991638,1772983840736,-500.0,0.00019989,2]
[407991640,1772983840746,-500.0,0.00019989,2]
[407991642,1772983840756,-581.70511524,0.00019989,2]
[407991644,1772983840765,-496.22035025,0.00019989,2]
[407991647,1772983840775,-500.0,0.00019989,2]
[407991649,1772983840784,-177.62330632,0.00019989,2]
[407991650,1772983840793,-500.0,0.00019989,2]
[407991652,1772983840803,-500.0,0.00019989,2]
[407991655,1772983840812,-500.0,0.00019989,2]
[407991656,1772983840821,-500.0,0.00019989,2]
[407991658,1772983840830,-500.0,0.00019989,2]
[407991660,1772983840839,-500.0,0.00019989,2]
[407991662,1772983840848,-500.0,0.00019989,2]
[407991664,1772983840857,-188.95043837,0.0001999,2]
[407991665,1772983840866,-188.95043837,0.0001999,2]
[407991666,1772983840875,-188.95043837,0.0001999,2]
[407991667,1772983840884,-151.0,0.00019992,2]
[407991668,1772983840894,-26285.278341,0.00019995,2]
[407991669,1772983840903,-4896.5758425,0.00019995,2]
[407991670,1772983840912,-151.0,0.00019997,2]
[407991671,1772983840921,-300.0,0.00019999,2]
[407991672,1772983840931,-300.0,0.00019999,2]
[407991673,1772983840940,-666.0,0.00019999,2]
[407991674,1772983840949,-500.0,0.00019999,2]
[407991675,1772983840958,-500.0,0.00019999,2]
[407991676,1772983840968,-500.0,0.00019999,2]
[407991677,1772983840977,-500.0,0.00019999,2]
[407991678,1772983840986,-500.0,0.00019999,2]
[407991679,1772983840996,-500.0,0.00019999,2]
[407991680,1772983841004,-502.65710127,0.00019999,2]
[407991681,1772983841014,-500.0,0.00019999,2]
[407991682,1772983841022,-500.0,0.00019999,2]
[407991683,1772983841031,-500.0,0.00019999,2]
[407991684,1772983841040,-500.0,0.00019999,2]
[407991685,1772983841050,-520.79047913,0.00019999,2]
[407991686,1772983841059,-500.0,0.00019999,2]
[407991687,1772983841068,-500.0,0.00019999,2]
[407991688,1772983841077,-500.0,0.00019999,2]
[407991689,1772983841086,-500.0,0.00019999,2]
[407991690,1772983841095,-500.0,0.00019999,2]
[407991692,1772983841105,-500.0,0.00019999,2]
[407991694,1772983841115,-500.0,0.00019999,2]
[407991695,1772983841125,-500.0,0.00019999,2]
[407991696,1772983841135,-500.0,0.00019999,2]
[407991697,1772983841144,-175.79749323,0.00019999,2]
[407991698,1772983841153,-3000.0,0.00019999,2]
[407991699,1772983841163,-3000.0,0.00019999,2]
[407991700,1772983841172,-3000.0,0.00019999,2]
[407991701,1772983841181,-3000.0,0.00019999,2]
[407991702,1772983841190,-3000.0,0.00019999,2]
[407991703,1772983841199,-3000.0,0.00019999,2]
[407991704,1772983841210,-3000.0,0.00019999,2]
[407991705,1772983841219,-3000.0,0.00019999,2]
[407991706,1772983841229,-3000.0,0.00019999,2]
[407991707,1772983841238,-3000.0,0.00019999,2]
[407991708,1772983841247,-3000.0,0.00019999,2]
[407991709,1772983841257,-3000.0,0.00019999,2]
[407991710,1772983841266,-3000.0,0.00019999,2]
[407991711,1772983841276,-3000.0,0.00019999,2]
[407991712,1772983841285,-3000.0,0.00019999,2]
[407991713,1772983841295,-3000.0,0.00019999,2]
[407991714,1772983841304,-3000.0,0.00019999,2]
[407991715,1772983841313,-3000.0,0.00019999,2]
[407991716,1772983841323,-3000.0,0.00019999,2]
[407991717,1772983841332,-3000.0,0.00019999,2]
[407991718,1772983841341,-3000.0,0.00019999,2]
[407991719,1772983841350,-2012.0,0.00019999,2]
[407991720,1772983841360,-500.0,0.00019999,2]
[407991721,1772983841369,-313.00418583,0.00019999,2]
[407991722,1772983841379,-206.35597305,0.00019999,2]
[407991723,1772983841388,-368.45597942,0.00019999,2]
[407991724,1772983841397,-500.0,0.00019999,2]
[407991725,1772983841407,-169.06691202,0.00019999,2]
[407991726,1772983841416,-444.81947895,0.00019999,2]
[407991727,1772983841425,-520.99198351,0.00019999,2]
[407991728,1772983841434,-162.46726597,0.00019999,2]
[407991729,1772983841443,-150.0,0.00019999,2]
[407991730,1772983841452,-215.40583698,0.00019999,2]
[407991731,1772983841461,-6414.0,0.0002,2]
[407991732,1772983841471,-5130.0,0.0002,2]
[407991733,1772983841480,-2699645.16027108,0.0002,2]
[407991734,1772983841492,-292.077,0.0002,2]
[407991735,1772983841502,-278.08599999,0.0002,2]
[407991768,1772983842696,-1000.0,0.0001999,2]
[407991769,1772983842705,-7401.0,0.0002,2]
[407991770,1772983842716,-6109.24454533,0.0002,2]
[407991771,1772983842858,-3049.3,0.0002,2]
[407991819,1772983846250,-29564.45475349,0.0002,2]
[407991820,1772983846260,-42395.71474031,0.0002,2]
[407991821,1772983846271,-20746.18880124,0.0002,2]
[407991822,1772983846295,-685.56,0.0002,2]
[407991823,1772983870358,3000.0,0.0002,120]
[407992024,1772985031688,-1212.3705941,0.000139,2]
[407992025,1772985031703,-163.96,0.00014,2]
[407992026,1772985031717,-265.0,0.00014,2]
[407992027,1772985031732,-300.0,0.00014063,2]
[407992028,1772985031746,-300.0,0.00014125,2]
[407992029,1772985031761,-600.0,0.0001425,2]
[407992030,1772985031776,-300.0,0.00014343,2]
[407992031,1772985031790,-276.86307577,0.0001462,2]
[407992032,1772985031804,-600.0,0.0001472,2]
[407992033,1772985031818,-600.0,0.0001472,2]
[407992034,1772985031831,-250.0,0.00015,2]
[407992035,1772985031846,-383.0,0.00015398,2]
[407992036,1772985031860,-641.60633013,0.00015399,2]
[407992037,1772985031988,-558.39366987,0.00015399,2]
[407992038,1772985032004,-300.0,0.00015399,2]
[407992039,1772985032018,-300.0,0.00015399,2]
[407992040,1772985032033,-2055.73,0.000154,2]
[407992041,1772985032048,-250.0,0.000154,2]
[407992042,1772985032062,-600.0,0.000154,2]
[407992043,1772985032076,-300.0,0.000154,2]
[407992044,1772985032090,-485.87633013,0.000154,2]
[407992045,1772985032214,-114.12366987,0.000154,2]
[407992046,1772985032229,-300.0,0.000154,2]
[407992047,1772985032243,-250.0,0.000154,2]
[407992048,1772985032257,-263.64241837,0.000154,2]
[407992049,1772985032270,-300.0,0.000154,2]
[407992050,1772985032284,-250.0,0.000154,2]
[407992051,1772985032297,-1083.71,0.00015471,2]
[407992052,1772985032310,-163.96,0.0001556,2]
[407992053,1772985032323,-1767.34,0.00016002,2]
[407992054,1772985032336,-276.86307575,0.00016024,2]
[407992055,1772985032350,-429.91,0.00016246,2]
[407992056,1772985032363,-1991.43,0.00016256,2]
[407992057,1772985032376,-200.0,0.00016438,2]
[407992058,1772985032389,-433.0,0.00016499,2]
[407992059,1772985032402,-151.95,0.0001665,2]
[407992060,1772985032415,-420.0,0.00016847,2]
[407992061,1772985032428,-500.0,0.000169,2]
[407992062,1772985032441,-1680.0,0.00016932,2]
[407992063,1772985032455,-185.78,0.00016938,2]
[407992064,1772985032469,-511.0,0.00017,2]
[407992065,1772985032482,-509.0,0.00017,2]
[407992066,1772985032496,-507.0,0.00017,2]
[407992067,1772985032511,-163.96,0.0001712,2]
[407992068,1772985032525,-200.0,0.00017185,2]
[407992069,1772985032539,-166.66,0.00017218,2]
[407992070,1772985032552,-614.99870501,0.000174,3]
[407992071,1772985032566,-1388.98207361,0.000174,3]
[407992072,1772985032580,-276.86307575,0.00017428,2]
[407992074,1772985032594,-155.03648519,0.00017428,2]
[407992075,1772985032607,-1684.86744639,0.00017428,2]
[407992076,1772985032621,-163.88593468,0.00017481,2]
[407992077,1772985032635,-307.31221681,0.00017518,2]
[407992078,1772985032649,-151.0,0.00017525,2]
[407992079,1772985032663,-151.0,0.00017525,2]
[407992080,1772985032677,-151.0,0.00017525,2]
[407992081,1772985032690,-500.0,0.00017527,2]
[407992082,1772985032704,-520.99198351,0.00017527,2]
[407992083,1772985032717,-500.0,0.00017527,2]
[407992084,1772985032732,-169.06691202,0.00017527,2]
[407992085,1772985032748,-444.81947895,0.00017527,2]
[407992086,1772985032762,-162.46726597,0.00017527,2]
[407992087,1772985032775,-206.35597305,0.00017527,2]
[407992088,1772985032788,-500.0,0.00017527,2]
[407992089,1772985032802,-500.0,0.00017527,2]
[407992090,1772985032815,-368.45597942,0.00017527,2]
[407992091,1772985032829,-210.01395276,0.00017527,2]
[407992092,1772985032843,-500.0,0.00017527,2]
[407992093,1772985032856,-500.0,0.00017527,2]
[407992094,1772985032870,-500.0,0.00017527,2]
[407992095,1772985032884,-500.0,0.00017527,2]
[407992096,1772985032898,-496.22035025,0.00017527,2]
[407992097,1772985032912,-500.0,0.00017527,2]
[407992098,1772985032929,-500.0,0.00017527,2]
[407992099,1772985032943,-500.0,0.00017527,2]
[407992100,1772985032957,-177.62330632,0.00017527,2]
[407992101,1772985032970,-500.0,0.00017527,2]
[407992102,1772985032984,-500.0,0.00017527,2]
[407992103,1772985032998,-500.0,0.00017527,2]
[407992104,1772985033011,-581.70511524,0.00017527,2]
[407992105,1772985033024,-500.0,0.00017527,2]
[407992106,1772985033038,-500.0,0.00017527,2]
[407992107,1772985033051,-500.0,0.00017527,2]
[407992108,1772985033065,-150.00000001,0.00017527,2]
[407992109,1772985033079,-119830.90842451,0.00017528,2]
[407992110,1772985033096,-16610.89043063,0.00017528,2]
[407992111,1772985033120,-355.00000001,0.00017528,2]
[407992113,1772985037796,-150.0,0.00017076,2]
[407992114,1772985037805,-202.690585,0.00017077,2]
[407992115,1772985037815,-5835.259415,0.00017528,2]